fUSD/lending_fUSD_20260329
["ID","MTS","AMOUNT","RATE_DAILY","PERIOD"]
[419034647,1774794642778,-151.0,0.00012672,2]
[419034648,1774794642793,-500.0,0.00012672,2]
[419034649,1774794642808,-151.0,0.00012672,2]
[419034650,1774794642824,-500.0,0.00012672,2]
[419034651,1774794642838,-292.30151101,0.00012672,2]
[419034652,1774794642852,-500.0,0.00012672,2]
[419034653,1774794642867,-500.0,0.00012672,2]
[419034654,1774794642882,-209.40437684,0.00012672,2]
[419034655,1774794642897,-500.0,0.00012672,2]
[419034656,1774794642914,-500.0,0.00012672,2]
[419034657,1774794642929,-500.0,0.00012672,2]
[419034658,1774794642946,-500.0,0.00012672,2]
[419034659,1774794642960,-500.0,0.00012672,2]
[419034660,1774794642975,-500.0,0.00012672,2]
[419034661,1774794642989,-500.0,0.00012672,2]
[419034662,1774794643005,-500.0,0.00012672,2]
[419034663,1774794643021,-500.0,0.00012672,2]
[419034665,1774794643037,-500.0,0.00012672,2]
[419034666,1774794643053,-500.0,0.00012672,2]
[419034667,1774794643069,-500.0,0.00012672,2]
[419034668,1774794643085,-500.0,0.00012672,2]
[419034669,1774794643100,-174.61919141,0.00012672,2]
[419034670,1774794643116,-151.0,0.00012672,2]
[419034671,1774794643133,-500.0,0.00012672,2]
[419034672,1774794643149,-500.0,0.00012672,2]
[419034673,1774794643164,-500.0,0.00012672,2]
[419034674,1774794643179,-500.0,0.00012672,2]
[419034675,1774794643196,-500.0,0.00012672,2]
[419034676,1774794643211,-500.0,0.00012672,2]
[419034677,1774794643228,-500.0,0.00012672,2]
[419034678,1774794643243,-500.0,0.00012672,2]
[419034680,1774794643259,-500.0,0.00012672,2]
[419034682,1774794643275,-693.3919763,0.00012672,2]
[419034684,1774794643290,-250.0,0.00012672,2]
[419034685,1774794643306,-200.0,0.00012672,2]
[419034686,1774794643322,-151.0,0.00012672,2]
[419034687,1774794643336,-194.63986655,0.00012672,2]
[419034688,1774794643351,-250.0,0.00012672,2]
[419034689,1774794643368,-250.0,0.00012672,2]
[419034690,1774794643383,-262.90206542,0.00012672,2]
[419034691,1774794643399,-250.0,0.00012672,2]
[419034692,1774794643413,-250.0,0.00012672,2]
[419034693,1774794643429,-250.0,0.00012672,2]
[419034694,1774794643444,-250.0,0.00012672,2]
[419034695,1774794643461,-250.0,0.00012672,2]
[419034696,1774794643476,-250.0,0.00012672,2]
[419034697,1774794643491,-250.0,0.00012672,2]
[419034698,1774794643506,-209.40437684,0.00012672,2]
[419034699,1774794643521,-250.0,0.00012672,2]
[419034700,1774794643535,-279.9045709,0.00012672,2]
[419034701,1774794643549,-209.40437684,0.00012672,2]
[419034702,1774794643565,-743.50770149,0.00012672,2]
[419034703,1774794643580,-500.0,0.00012672,2]
[419034704,1774794643595,-500.0,0.00012672,2]
[419034705,1774794643610,-500.0,0.00012672,2]
[419034706,1774794643625,-500.0,0.00012672,2]
[419034707,1774794643640,-500.0,0.00012672,2]
[419034708,1774794643656,-500.0,0.00012727,2]
[419034709,1774794643671,-151.0,0.00012727,2]
[419034710,1774794643686,-272.62944185,0.00012727,2]
[419034711,1774794643696,-15058.92220105,0.00012736,2]
[419034712,1774794643706,-65223.01927979,0.0001274,2]
[419034713,1774794643716,-200.0,0.00012761,2]
[419034714,1774794643726,-255.0,0.00012775,2]
[419034715,1774794643736,-500.0,0.00012782,2]
[419034716,1774794643746,-151.0,0.00012782,2]
[419034717,1774794643756,-282.71673119,0.00012782,2]
[419034718,1774794643765,-6552.0419316,0.00012788,2]
[419034731,1774794644292,-193611.2064837,0.00012788,2]
[419034734,1774794644330,-178931.8037283,0.00012788,2]
[419034735,1774794644362,-151.0,0.00012788,2]
[419034736,1774794644380,-151.0,0.00012788,2]
[419034737,1774794644390,-5602.657027,0.00012788,2]
[419034738,1774794644399,-708.8800231,0.00012788,2]
[419034739,1774794644409,-164.573358,0.00012788,2]
[419034740,1774794644419,-164.573358,0.00012788,2]
[419034741,1774794644429,-164.573358,0.00012788,2]
[419034742,1774794644438,-164.573358,0.00012788,2]
[419034743,1774794644448,-183763.6308051,0.00012788,2]
[419034744,1774794644458,-151.189324,0.00012788,2]
[419034745,1774794644468,-151.189324,0.00012788,2]
[419034746,1774794644477,-151.189324,0.00012788,2]
[419034747,1774794644487,-151.189324,0.00012788,2]
[419034748,1774794644497,-151.189324,0.00012788,2]
[419034749,1774794644506,-151.189324,0.00012788,2]
[419034750,1774794644515,-151.189324,0.00012788,2]
[419034751,1774794644524,-151.189324,0.00012788,2]
[419034752,1774794644534,-151.0,0.00012788,2]
[419034753,1774794644543,-151.0,0.00012788,2]
[419034754,1774794644553,-151.0,0.00012788,2]
[419034755,1774794644563,-151.0,0.00012788,2]
[419034756,1774794644572,-1094.914667,0.00012788,2]
[419034757,1774794644581,-1094.914667,0.00012788,2]
[419034758,1774794644591,-1094.914667,0.00012788,2]
[419034759,1774794644600,-1094.914667,0.00012788,2]
[419034760,1774794644610,-1094.914667,0.00012788,2]
[419034761,1774794644620,-1094.914667,0.00012788,2]
[419034762,1774794644630,-1094.914667,0.00012788,2]
[419034763,1774794644639,-1094.914667,0.00012788,2]
[419034764,1774794644649,-155.4136879,0.00012788,2]
[419034765,1774794644658,-911.179565,0.00012788,2]
[419034766,1774794644669,-911.179565,0.00012788,2]
[419034767,1774794644678,-911.179565,0.00012788,2]
[419034768,1774794644688,-911.179565,0.00012788,2]
[419034769,1774794644697,-911.179565,0.00012788,2]
[419034770,1774794644708,-911.179565,0.00012788,2]
[419034771,1774794644718,-911.179565,0.00012788,2]
[419034772,1774794644727,-911.179565,0.00012788,2]
[419034773,1774794644736,-151.0,0.00012788,2]
[419034774,1774794644746,-151.0,0.00012788,2]
[419034775,1774794644756,-151.0,0.00012788,2]
[419034776,1774794644765,-173296.2542283,0.00012788,2]
[419034777,1774794644775,-151.0,0.00012788,2]
[419034778,1774794644785,-725.83,0.00012802,2]
[419034779,1774794644794,-500.0,0.00012808,2]
[419034780,1774794644803,-6557.613069,0.00012809,2]
[419034781,1774794644812,-350.0,0.00012832,2]
[419034782,1774794644822,-500.0,0.00012837,2]
[419034783,1774794644831,-151.0,0.00012837,2]
[419034784,1774794644841,-293.17725025,0.00012837,2]
[419034785,1774794644851,-4755.895352,0.00012838,2]
[419034786,1774794644860,-350.0,0.00012843,2]
[419034787,1774794644870,-15058.92220105,0.00012852,2]
[419034788,1774794644879,-166.474048,0.00012861,2]
[419034789,1774794644888,-166.474048,0.00012861,2]
[419034790,1774794644897,-166.474048,0.00012861,2]
[419034791,1774794644907,-151.0,0.00012861,2]
[419034792,1774794644916,-151.0,0.00012861,2]
[419034793,1774794644925,-151.0,0.00012861,2]
[419034794,1774794644935,-1453.926989,0.00012864,2]
[419034795,1774794644944,-1453.926989,0.00012864,2]
[419034796,1774794644953,-1453.926989,0.00012864,2]
[419034797,1774794644962,-1453.926989,0.00012864,2]
[419034798,1774794644971,-151.0,0.00012864,2]
[419034799,1774794644981,-151.0,0.00012864,2]
[419034800,1774794644990,-151.0,0.00012864,2]
[419034801,1774794644999,-151.0,0.00012864,2]
[419034802,1774794645009,-186.803227,0.00012864,2]
[419034803,1774794645018,-151.0,0.00012864,2]
[419034804,1774794645028,-151.0,0.00012864,2]
[419034805,1774794645038,-164.573358,0.00012864,2]
[419034806,1774794645047,-164.573358,0.00012864,2]
[419034807,1774794645056,-164.573358,0.00012864,2]
[419034808,1774794645066,-164.573358,0.00012864,2]
[419034809,1774794645075,-1447.0,0.00012864,2]
[419034810,1774794645085,-300.0,0.00012864,2]
[419034811,1774794645094,-1500.0,0.00012868,2]
[419034812,1774794645103,-1500.0,0.00012868,2]
[419034813,1774794645113,-1500.0,0.00012868,2]
[419034814,1774794645122,-1000.0,0.00012868,2]
[419034815,1774794645131,-1500.0,0.00012868,2]
[419034816,1774794645141,-1096.61126696,0.00012869,3]
[419034817,1774794645150,-435.9455498,0.0001287,2]
[419034818,1774794645159,-258.09544847,0.0001287,2]
[419034819,1774794645169,-500.0,0.00012892,2]
[419034820,1774794645178,-151.0,0.00012892,2]
[419034821,1774794645188,-304.02480851,0.00012892,2]
[419034822,1774794645197,-406.937068,0.00012936,2]
[419034823,1774794645207,-4105.00889,0.00012936,2]
[419034824,1774794645217,-1767.971301,0.00012936,2]
[419034825,1774794645227,-279.568263,0.00012936,2]
[419034826,1774794645236,-500.0,0.00012947,2]
[419034827,1774794645246,-151.0,0.00012947,2]
[419034828,1774794645255,-315.27372642,0.00012947,2]
[419034829,1774794645265,-15058.92220105,0.00012968,2]
[419034830,1774794645274,-1096.61126696,0.00012969,3]
[419034831,1774794645283,-1096.61126695,0.00012969,3]
[419034832,1774794645295,-58217.26008247,0.00012999,2]
[419034833,1774794645305,-250.0,0.00013,2]
[419034834,1774794645315,-500.0,0.00013002,2]
[419034835,1774794645324,-151.0,0.00013002,2]
[419034836,1774794645334,-326.9388543,0.00013002,2]
[419034837,1774794645344,-500.0,0.00013057,2]
[419034838,1774794645355,-151.0,0.00013057,2]
[419034839,1774794645365,-339.03559191,0.00013057,2]
[419034840,1774794645375,-4841.972743,0.00013062,2]
[419034841,1774794645384,-3505.0,0.00013066,5]
[419034842,1774794645394,-3626.0,0.00013066,5]
[419034843,1774794645404,-500.0,0.00013068,2]
[419034844,1774794645414,-1500.0,0.00013068,2]
[419034845,1774794645424,-1491.30447232,0.00013076,2]
[419034846,1774794645433,-725.83,0.00013076,2]
[419034847,1774794645443,-151.189324,0.000131,2]
[419034848,1774794645453,-151.189324,0.000131,2]
[419034849,1774794645462,-151.189324,0.000131,2]
[419034850,1774794645470,-151.189324,0.000131,2]
[419034851,1774794645480,-151.0,0.000131,2]
[419034852,1774794645490,-214.766298,0.000131,2]
[419034853,1774794645499,-1094.914667,0.000131,2]
[419034854,1774794645509,-1094.914667,0.000131,2]
[419034855,1774794645518,-1094.914667,0.000131,2]
[419034856,1774794645528,-1094.914667,0.000131,2]
[419034857,1774794645538,-911.179565,0.000131,2]
[419034858,1774794645547,-911.179565,0.000131,2]
[419034859,1774794645556,-911.179565,0.000131,2]
[419034860,1774794645566,-911.179565,0.000131,2]
[419034861,1774794645575,-500.0,0.00013112,2]
[419034862,1774794645585,-151.0,0.00013112,2]
[419034863,1774794645595,-350.0,0.00013116,2]
[419034864,1774794645607,-157.51,0.00013166,2]
[419034865,1774794645617,-500.0,0.00013167,2]
[419034866,1774794645628,-151.0,0.00013167,2]
[419034867,1774794645638,-1000.0,0.000132,2]
[419034868,1774794645647,-1000.0,0.000132,2]
[419034869,1774794645657,-1000.0,0.000132,2]
[419034870,1774794645667,-1000.0,0.000132,2]
[419034871,1774794645677,-1000.0,0.000132,2]
[419034872,1774794645686,-1000.0,0.000132,2]
[419034873,1774794645696,-1000.0,0.000132,2]
[419034874,1774794645706,-1000.0,0.000132,2]
[419034875,1774794645716,-1000.0,0.000132,2]
[419034876,1774794645725,-1000.0,0.000132,2]
[419034877,1774794645735,-1000.0,0.000132,2]
[419034878,1774794645744,-1000.0,0.000132,2]
[419034879,1774794645754,-1000.0,0.000132,2]
[419034880,1774794645763,-1000.0,0.000132,2]
[419034881,1774794645773,-1000.0,0.000132,2]
[419034882,1774794645782,-1000.0,0.000132,2]
[419034883,1774794645792,-1000.0,0.000132,2]
[419034884,1774794645801,-1000.0,0.000132,2]
[419034885,1774794645811,-1000.0,0.000132,2]
[419034886,1774794645821,-1000.0,0.000132,2]
[419034887,1774794645831,-1000.0,0.000132,2]
[419034888,1774794645841,-482.25822731,0.000132,2]
[419034889,1774794645850,-151.0,0.000132,2]
[419034890,1774794645859,-151.0,0.000132,2]
[419034891,1774794645869,-164.573358,0.000132,2]
[419034892,1774794645879,-164.573358,0.000132,2]
[419034893,1774794645888,-164.573358,0.000132,2]
[419034894,1774794645898,-164.573358,0.000132,2]
[419034895,1774794645908,-2000.0,0.000132,2]
[419034896,1774794645917,-2000.0,0.000132,2]
[419034897,1774794645926,-2000.0,0.000132,2]
[419034898,1774794645935,-2000.0,0.000132,2]
[419034899,1774794645945,-2000.0,0.000132,2]
[419034900,1774794645955,-2000.0,0.000132,2]
[419034901,1774794645964,-151.0,0.000132,2]
[419034902,1774794645973,-151.0,0.000132,2]
[419034903,1774794645983,-151.0,0.000132,2]
[419034904,1774794645993,-270.026702,0.000132,2]
[419034905,1774794646002,-217.15233878,0.0001322,2]
[419034906,1774794646013,-1481.23780761,0.0001322,2]
[419034907,1774794646022,-151.0,0.0001322,2]
[419034908,1774794646031,-217.15233878,0.0001322,2]
[419034909,1774794646041,-181.08010149,0.0001322,2]
[419034910,1774794646050,-719.04747942,0.0001322,2]
[419034911,1774794646060,-200.0,0.0001322,2]
[419034912,1774794646070,-290.26104003,0.0001322,2]
[419034913,1774794646079,-771.01748645,0.0001322,2]
[419034914,1774794646089,-500.0,0.00013222,2]
[419034915,1774794646099,-151.0,0.00013222,2]
[419034916,1774794646108,-774.90129977,0.00013253,2]
[419034917,1774794646118,-350.0,0.00013289,2]
[419034918,1774794646128,-1600.0,0.00013329,2]
[419034919,1774794646138,-444.0,0.00013331,2]
[419034920,1774794646147,-725.83,0.0001335,2]
[419034921,1774794646157,-287.0,0.00013375,2]
[419034922,1774794646167,-333.0,0.00013397,2]
[419034923,1774794646177,-222.0,0.00013397,2]
[419034924,1774794646186,-555.0,0.00013397,2]
[419034925,1774794646205,-300.0,0.000134,2]
[419034926,1774794646218,-444.0,0.000134,2]
[419034927,1774794646228,-2000.0,0.000134,2]
[419034928,1774794646238,-2351.0,0.00013404,2]
[419034929,1774794646249,-2000.0,0.00013416,2]
[419034930,1774794646259,-2000.0,0.00013416,2]
[419034931,1774794646269,-1245.04491428,0.00013416,2]
[419034932,1774794646279,-1061.25077082,0.00013416,2]
[419034933,1774794646290,-3240.0,0.00013425,2]
[419034934,1774794646300,-151.0,0.00013432,2]
[419034935,1774794646309,-151.0,0.00013432,2]
[419034936,1774794646319,-204.07600257,0.00013433,3]
[419034937,1774794646330,-1079.3194623,0.00013433,3]
[419034938,1774794646340,-1453.926989,0.00013434,2]
[419034939,1774794646350,-1453.926989,0.00013434,2]
[419034940,1774794646360,-1453.926989,0.00013434,2]
[419034941,1774794646370,-1453.926989,0.00013434,2]
[419034942,1774794646379,-151.0,0.00013434,2]
[419034943,1774794646389,-151.0,0.00013434,2]
[419034944,1774794646399,-405.78,0.00013445,2]
[419034945,1774794646409,-350.0,0.00013588,2]
[419034946,1774794646420,-1800.0,0.000136,2]
[419034947,1774794646430,-2000.0,0.00013616,2]
[419034948,1774794646440,-1546.48273779,0.00013624,2]
[419034949,1774794646450,-725.83,0.00013624,2]
[419034950,1774794646460,-166.67,0.00013666,2]
[419034951,1774794646471,-151.0,0.00013695,2]
[419034952,1774794646481,-166.474048,0.00013697,2]
[419034953,1774794646491,-500.0,0.00013698,2]
[419034954,1774794646501,-500.0,0.00013698,2]
[419034955,1774794646511,-500.0,0.00013698,2]
[419034956,1774794646521,-500.0,0.00013698,2]
[419034957,1774794646531,-500.0,0.00013698,2]
[419034958,1774794646541,-500.0,0.00013698,2]
[419034959,1774794646552,-500.0,0.00013698,2]
[419034960,1774794646563,-500.0,0.00013698,2]
[419034961,1774794646573,-500.0,0.00013698,2]
[419034962,1774794646583,-500.0,0.00013698,2]
[419034963,1774794646593,-500.0,0.00013698,2]
[419034964,1774794646603,-500.0,0.00013698,2]
[419034965,1774794646613,-500.0,0.00013698,2]
[419034966,1774794646623,-500.0,0.00013698,2]
[419034967,1774794646633,-500.0,0.00013698,2]
[419034968,1774794646642,-500.0,0.00013698,2]
[419034969,1774794646651,-500.0,0.00013698,2]
[419034970,1774794646662,-500.0,0.00013698,2]
[419034971,1774794646672,-500.0,0.00013698,2]
[419034972,1774794646681,-500.0,0.00013698,2]
[419034973,1774794646692,-500.0,0.00013698,2]
[419034974,1774794646702,-500.0,0.00013698,2]
[419034975,1774794646712,-500.0,0.00013698,2]
[419034976,1774794646722,-500.0,0.00013698,2]
[419034977,1774794646733,-161.59374025,0.00013698,2]
[419034978,1774794646743,-500.0,0.00013698,2]
[419034979,1774794646753,-500.0,0.00013698,2]
[419034980,1774794646763,-500.0,0.00013698,2]
[419034981,1774794646774,-500.0,0.00013698,2]
[419034982,1774794646784,-500.0,0.00013698,2]
[419034983,1774794646794,-83.31180057,0.00013698,2]
[419035004,1774794648155,-416.68819943,0.00013698,2]
[419035005,1774794648165,-132.17718216,0.00013698,2]
[419035006,1774794648177,-367.82281784,0.00013698,2]
[419035007,1774794648186,-500.0,0.00013698,2]
[419035008,1774794648196,-532.16065142,0.00013698,2]
[419035009,1774794648205,-500.0,0.00013698,2]
[419035010,1774794648214,-500.0,0.00013698,2]
[419035011,1774794648224,-500.0,0.00013698,2]
[419035012,1774794648233,-400.01653074,0.00013698,2]
[419035013,1774794648298,-99.98346926,0.00013698,2]
[419035014,1774794648308,-500.0,0.00013698,2]
[419035015,1774794648319,-500.0,0.00013698,2]
[419035016,1774794648329,-500.0,0.00013698,2]
[419035017,1774794648350,-13.36755635,0.00013698,2]
[419035018,1774794648609,-1053.50625569,0.00011648,2]
[419035019,1774794648619,-280.24754682,0.00011648,2]
[419035020,1774794648631,-773.25870887,0.00011648,2]
[419035021,1774794648641,-54.49862361,0.00012462,2]
[419035022,1774794648935,-462.708,0.00012462,2]
[419035023,1774794648949,-1434.61950838,0.00012462,2]
[419035024,1774794648962,-4107.15997515,0.00012462,2]
[419035025,1774794648975,-608.21731146,0.00012462,2]
[419035026,1774794649019,-1180.95304529,0.00012462,2]
[419035027,1774794649031,-400.88914376,0.00012462,2]
[419035028,1774794649052,-302.15590591,0.00012462,2]
[419035029,1774794649062,-243.09117432,0.00013698,2]
[419035030,1774794649073,-500.0,0.00013698,2]
[419035031,1774794649084,-500.0,0.00013698,2]
[419035032,1774794649094,-485.30482118,0.00013698,2]
[419035033,1774794649104,-500.0,0.00013698,2]
[419035034,1774794649115,-500.0,0.00013698,2]
[419035035,1774794649125,-500.0,0.00013698,2]
[419035036,1774794649135,-257.73702656,0.00013698,2]
[419035037,1774794649145,-500.0,0.00013698,2]
[419035038,1774794649156,-500.0,0.00013698,2]
[419035039,1774794649166,-500.0,0.00013698,2]
[419035040,1774794649177,-500.0,0.00013698,2]
[419035041,1774794649188,-500.0,0.00013698,2]
[419035042,1774794649198,-604.01853711,0.00013698,2]
[419035043,1774794649209,-500.0,0.00013698,2]
[419035044,1774794649219,-500.0,0.00013698,2]
[419035045,1774794649229,-500.0,0.00013698,2]
[419035046,1774794649239,-472.64060135,0.00013698,2]
[419035047,1774794649250,-500.0,0.00013698,2]
[419035048,1774794649261,-500.0,0.00013698,2]
[419035049,1774794649271,-500.0,0.00013698,2]
[419035050,1774794649281,-500.0,0.00013698,2]
[419035051,1774794649292,-500.0,0.00013698,2]
[419035052,1774794649302,-500.0,0.00013698,2]
[419035053,1774794649312,-500.0,0.00013698,2]
[419035054,1774794649322,-500.0,0.00013698,2]
[419035055,1774794649332,-500.0,0.00013698,2]
[419035056,1774794649343,-500.0,0.00013698,2]
[419035057,1774794649353,-500.0,0.00013698,2]
[419035058,1774794649363,-500.0,0.00013698,2]
[419035059,1774794649374,-500.0,0.00013698,2]
[419035060,1774794649384,-500.0,0.00013698,2]
[419035061,1774794649395,-166.57945986,0.00013698,2]
[419035062,1774794649413,-333.42054014,0.00013698,2]
[419035063,1774794649423,-500.0,0.00013698,2]
[419035064,1774794649434,-233.8,0.00013698,2]
[419035065,1774794649444,-500.0,0.00013698,2]
[419035066,1774794649455,-500.0,0.00013698,2]
[419035067,1774794649464,-500.0,0.00013698,2]
[419035068,1774794649475,-500.0,0.00013698,2]
[419035069,1774794649485,-500.0,0.00013698,2]
[419035070,1774794649495,-500.0,0.00013698,2]
[419035071,1774794649506,-500.0,0.00013698,2]
[419035072,1774794649515,-500.0,0.00013698,2]
[419035073,1774794649526,-500.0,0.00013698,2]
[419035074,1774794649536,-500.0,0.00013698,2]
[419035075,1774794649546,-500.0,0.00013698,2]
[419035076,1774794649556,-500.0,0.00013698,2]
[419035077,1774794649567,-500.0,0.00013698,2]
[419035078,1774794649577,-500.0,0.00013698,2]
[419035079,1774794649588,-500.0,0.00013698,2]
[419035080,1774794649598,-500.0,0.00013698,2]
[419035081,1774794649608,-500.0,0.00013698,2]
[419035082,1774794649618,-500.0,0.00013698,2]
[419035083,1774794649628,-500.0,0.00013698,2]
[419035084,1774794649638,-500.0,0.00013698,2]
[419035085,1774794649648,-500.0,0.00013698,2]
[419035086,1774794649658,-500.0,0.00013698,2]
[419035087,1774794649668,-500.0,0.00013698,2]
[419035088,1774794649679,-500.0,0.00013698,2]
[419035089,1774794649688,-500.0,0.00013698,2]
[419035090,1774794649698,-500.0,0.00013698,2]
[419035091,1774794649708,-500.0,0.00013698,2]
[419035092,1774794649717,-303.25812129,0.00013698,2]
[419035093,1774794649727,-500.0,0.00013698,2]
[419035094,1774794649737,-500.0,0.00013698,2]
[419035095,1774794649747,-500.0,0.00013698,2]
[419035096,1774794649756,-500.0,0.00013698,2]
[419035097,1774794649766,-500.0,0.00013698,2]
[419035098,1774794649775,-565.61163814,0.00013698,2]
[419035099,1774794649786,-500.00364233,0.00013698,2]
[419035100,1774794649796,-500.0,0.00013698,2]
[419035101,1774794649806,-500.0,0.00013698,2]
[419035102,1774794649988,-500.0,0.00013698,2]
[419035103,1774794649998,-500.0,0.00013698,2]
[419035104,1774794650007,-500.0,0.00013698,2]
[419035105,1774794650017,-500.0,0.00013698,2]
[419035106,1774794650027,-500.0,0.00013698,2]
[419035107,1774794650036,-500.0,0.00013698,2]
[419035108,1774794650046,-500.0,0.00013698,2]
[419035109,1774794650056,-500.0,0.00013698,2]
[419035110,1774794650065,-500.0,0.00013698,2]
[419035111,1774794650075,-500.0,0.00013698,2]
[419035112,1774794650084,-500.0,0.00013698,2]
[419035113,1774794650094,-500.0,0.00013698,2]
[419035114,1774794650103,-500.0,0.00013698,2]
[419035115,1774794650112,-500.0,0.00013698,2]
[419035116,1774794650122,-500.0,0.00013698,2]
[419035117,1774794650131,-500.0,0.00013698,2]
[419035118,1774794650140,-500.0,0.00013698,2]
[419035119,1774794650150,-500.0,0.00013698,2]
[419035120,1774794650160,-500.0,0.00013698,2]
[419035121,1774794650170,-500.0,0.00013698,2]
[419035122,1774794650179,-500.0,0.00013698,2]
[419035123,1774794650189,-500.0,0.00013698,2]
[419035124,1774794650199,-500.0,0.00013698,2]
[419035125,1774794650209,-500.0,0.00013698,2]
[419035126,1774794650218,-500.0,0.00013698,2]
[419035127,1774794650227,-500.0,0.00013698,2]
[419035128,1774794650237,-500.0,0.00013698,2]
[419035129,1774794650246,-500.0,0.00013698,2]
[419035130,1774794650256,-500.0,0.00013698,2]
[419035131,1774794650266,-500.0,0.00013698,2]
[419035132,1774794650275,-500.0,0.00013698,2]
[419035133,1774794650285,-500.0,0.00013698,2]
[419035134,1774794650295,-500.0,0.00013698,2]
[419035135,1774794650305,-500.0,0.00013698,2]
[419035136,1774794650315,-500.0,0.00013698,2]
[419035137,1774794650324,-500.0,0.00013699,2]
[419035138,1774794650335,-500.0,0.00013699,2]
[419035139,1774794650345,-150.0,0.00013699,2]
[419035140,1774794650355,-150.0,0.00013699,2]
[419035141,1774794650365,-205.02,0.00013699,2]
[419035142,1774794650375,-1595.78,0.00013699,2]
[419035143,1774794650385,-200.0,0.00013699,2]
[419035144,1774794650395,-151.0,0.00013699,2]
[419035145,1774794650404,-151.0,0.00013699,2]
[419035146,1774794650414,-151.0,0.00013699,2]
[419035147,1774794650424,-151.0,0.00013699,2]
[419035148,1774794650434,-151.0,0.00013699,2]
[419035149,1774794650444,-151.0,0.00013699,2]
[419035150,1774794650453,-151.0,0.00013699,2]
[419035151,1774794650463,-229.672182,0.00013699,2]
[419035152,1774794650473,-194.182189,0.00013699,2]
[419035153,1774794650483,-194.182189,0.00013699,2]
[419035154,1774794650493,-194.182189,0.00013699,2]
[419035155,1774794650502,-194.182189,0.00013699,2]
[419035156,1774794650512,-194.182189,0.00013699,2]
[419035157,1774794650521,-103.1954341,0.00013699,2]
[419035158,1774794650548,-363.28795816,0.00013434,2]
[419035159,1774794650558,-90.9867549,0.00013699,2]
[419035160,1774794650567,-194.182189,0.00013699,2]
[419035161,1774794650577,-194.182189,0.00013699,2]
[419035162,1774794650586,-308.596084,0.00013699,2]
[419035163,1774794650595,-308.596084,0.00013699,2]
[419035164,1774794650605,-308.596084,0.00013699,2]
[419035165,1774794650614,-308.596084,0.00013699,2]
[419035166,1774794650624,-308.596084,0.00013699,2]
[419035167,1774794650634,-308.596084,0.00013699,2]
[419035168,1774794650644,-308.596084,0.00013699,2]
[419035169,1774794650653,-308.596084,0.00013699,2]
[419035170,1774794650663,-308.596084,0.00013699,2]
[419035171,1774794650673,-308.596084,0.00013699,2]
[419035172,1774794650682,-308.596084,0.00013699,2]
[419035173,1774794650692,-308.596084,0.00013699,2]
[419035174,1774794650701,-397.412151,0.00013699,2]
[419035175,1774794650711,-397.412151,0.00013699,2]
[419035176,1774794650720,-397.412151,0.00013699,2]
[419035177,1774794650730,-397.412151,0.00013699,2]
[419035178,1774794650740,-397.412151,0.00013699,2]
[419035179,1774794650749,-397.412151,0.00013699,2]
[419035180,1774794650760,-397.412151,0.00013699,2]
[419035181,1774794650769,-397.412151,0.00013699,2]
[419035182,1774794650779,-500.0,0.00013699,2]
[419035183,1774794650788,-500.0,0.00013699,2]
[419035184,1774794650797,-500.0,0.00013699,2]